fUST/lending_fUST_20240603
["ID","MTS","AMOUNT","RATE_DAILY","PERIOD"]
[328407979,1717355443136,-155.29201553,0.00019575,2]
[328407980,1717355443145,-500.0,0.00019575,2]
[328407981,1717355443154,-35390.69601551,0.00019576,2]
[328407982,1717355443164,-386.16067987,0.00019577,2]
[328407996,1717355443935,-304.132991,0.00019577,2]
[328407997,1717355444159,-447.98866417,0.00019577,2]
[328407998,1717355444169,-1102.70505763,0.0002,2]
[328407999,1717355444179,-186.63857084,0.00020957,2]
[328408000,1717355444189,-26.28328706,0.00021918,2]
[328408009,1717355472278,923.07966814,0.00014,2]
[328408010,1717355523984,16175.12436626,0.00014,2]
[328408011,1717355541970,1058.82996209,0.00014,2]
[328408014,1717356242995,23315.1398496,0.00014581,2]
[328408026,1717356375930,1511.555198,0.00014778,2]
[328408028,1717356416733,187.15378643,9.999e-05,2]
[328408031,1717356448282,24890.0,0.00014777,2]
[328408057,1717356472934,164.35628302,0.00015055,2]
[328408082,1717356606889,442.92295729,0.00015078,2]
[328408083,1717356615031,2034.43723362,0.00015149,2]
[328408084,1717356620140,1981.28535141,0.00015149,2]
[328408085,1717356623916,15299.84438823,0.00015149,2]
[328408099,1717356632376,-7909.30313863,0.00015148,2]
[328408100,1717356632385,-3986.19516882,0.00015149,2]
[328408101,1717356632395,-2639.57223461,0.0001515,2]
[328408102,1717356632404,-3000.0,0.00015178,2]
[328408103,1717356632413,-442.92295723,0.00017188,2]
[328408104,1717356632424,-10474.86061582,0.00017898,2]
[328408105,1717356632433,-1127.9176166,0.00018281,2]
[328408106,1717356632443,-250.0,0.0001872,2]
[328408107,1717356632453,-267.29729981,0.000189,2]
[328408108,1717356632462,-164.793736,0.00019178,2]
[328408109,1717356632471,-442.92295723,0.00019297,2]
[328408110,1717356632481,-977.36743668,0.0001949,2]
[328408111,1717356632490,-1102.70505763,0.0002,2]
[328408112,1717356632500,-442.92295723,0.00021407,2]
[328408113,1717356632509,-893.139124,0.000217,2]
[328408114,1717356632520,-4233.16048784,0.00021752,2]
[328408115,1717356632529,-305.112947,0.000218,2]
[328408116,1717356632539,-166.666666,0.00021918,2]
[328408117,1717356632548,-623.8675752,0.000221,2]
[328408118,1717356632558,-1511.555198,0.00022167,2]
[328408119,1717356632567,-5337.98771213,0.00022281,2]
[328408120,1717356632576,-166.666666,0.00022431,2]
[328408121,1717356632586,-893.13912396,0.00022826,2]
[328408122,1717356632595,-166.666666,0.00022944,2]
[328408123,1717356632604,-206.69949084,0.00023,2]
[328408124,1717356632614,-154.9690062,0.00023,2]
[328408125,1717356632623,-154.9690062,0.00023455,2]
[328408126,1717356632632,-166.666666,0.00023456,2]
[328408127,1717356632642,-150.95471359,0.00023483,2]
[328408128,1717356632651,-442.92295723,0.00023516,2]
[328408129,1717356632660,-153.0,0.00023637,2]
[328408130,1717356632670,-204.942387,0.00023637,2]
[328408131,1717356632679,-267.29729981,0.000239,2]
[328408132,1717356632688,-893.13912396,0.00023953,2]
[328408133,1717356632697,-166.666666,0.00023969,2]
[328408134,1717356632706,-200.0,0.0002411,2]
[328408135,1717356632716,-151.0,0.0002411,2]
[328408136,1717356632724,-151.0,0.0002411,2]
[328408137,1717356632734,-151.0,0.0002411,2]
[328408138,1717356632743,-151.0,0.0002411,2]
[328408139,1717356632752,-204.985722,0.00024329,2]
[328408140,1717356632761,-762.03882805,0.000244,2]
[328408141,1717356632770,-166.666666,0.00024482,2]
[328408142,1717356632779,-186.51869972,0.00024499,2]
[328408143,1717356632789,-151.0,0.000245,2]
[328408144,1717356632798,-151.0,0.000245,2]
[328408145,1717356632807,-151.0,0.000245,2]
[328408146,1717356632816,-156.927601,0.000245,2]
[328408147,1717356632826,-204.220422,0.000245,2]
[328408148,1717356632835,-156.927601,0.000245,2]
[328408149,1717356632844,-204.220422,0.000245,2]
[328408150,1717356632854,-151.0,0.000245,2]
[328408151,1717356632863,-151.0,0.000245,2]
[328408152,1717356632872,-13238.91696592,0.000245,2]
[328408153,1717356632885,-306.0,0.000245,2]
[328408154,1717356632896,-674.83,0.000245,2]
[328408155,1717356632908,-523.46627998,0.000245,2]
[328408189,1717356639579,-762.03882805,0.00024481,2]
[328408190,1717356639588,-139.11397101,0.000245,2]
[328408191,1717356639600,-1608.2495665,0.000245,2]
[328408192,1717356639613,-973.35225239,0.000245,2]
[328408193,1717356639622,-151.0,0.000245,2]
[328408194,1717356639632,-151.0,0.000245,2]
[328408195,1717356639642,-152.228194,0.000245,2]
[328408196,1717356639651,-1057.684367,0.000245,2]
[328408197,1717356639660,-1042.74341027,0.000245,2]
[328408198,1717356639672,-14.94095673,0.000245,2]
[328408199,1717356639683,-1057.684367,0.000245,2]
[328408200,1717356639692,-1057.684367,0.000245,2]
[328408201,1717356639702,-151.0,0.000245,2]
[328408202,1717356639711,-151.0,0.000245,2]
[328408203,1717356639720,-380.028036,0.000245,2]
[328408204,1717356639730,-380.028036,0.000245,2]
[328408205,1717356639739,-380.028036,0.000245,2]
[328408206,1717356639748,-380.028036,0.000245,2]
[328408207,1717356639758,-290.635608,0.000245,2]
[328408208,1717356639767,-290.635608,0.000245,2]
[328408209,1717356639777,-151.0,0.000245,2]
[328408210,1717356639786,-156.889942,0.000245,2]
[328408211,1717356639796,-151.0,0.000245,2]
[328408212,1717356639805,-151.0,0.000245,2]
[328408213,1717356639815,-301.818836,0.000245,2]
[328408214,1717356639824,-151.0,0.000245,2]
[328408215,1717356639833,-210.70950124,0.00024687,2]
[328408216,1717356639843,-345.0,0.00024932,2]
[328408217,1717356639853,-725.24617809,0.00024973,2]
[328408218,1717356639862,-500.0,0.00024997,2]
[328408219,1717356639871,-500.0,0.00024997,2]
[328408220,1717356639881,-500.0,0.00024997,2]
[328408221,1717356639890,-500.0,0.00024997,2]
[328408222,1717356639899,-500.0,0.00024997,2]
[328408223,1717356639908,-500.0,0.00024997,2]
[328408224,1717356639917,-500.0,0.00024997,2]
[328408225,1717356639927,-500.0,0.00024997,2]
[328408226,1717356639936,-500.0,0.00024997,2]
[328408227,1717356639946,-500.0,0.00024997,2]
[328408228,1717356639956,-500.0,0.00024997,2]
[328408229,1717356639965,-500.0,0.00024997,2]
[328408230,1717356639975,-500.0,0.00024997,2]
[328408231,1717356639984,-500.0,0.00024997,2]
[328408232,1717356639994,-500.0,0.00024997,2]
[328408233,1717356640004,-435.11462144,0.00024997,2]
[328408234,1717356640015,-500.0,0.00024997,2]
[328408235,1717356640026,-500.0,0.00024997,2]
[328408236,1717356640036,-1976.35166809,0.00024997,2]
[328408237,1717356640046,-9149.2481879,0.00024998,2]
[328408238,1717356640056,-290.635608,0.00024998,2]
[328408239,1717356640066,-290.635608,0.00024998,2]
[328408240,1717356640076,-151.0,0.00024998,2]
[328408241,1717356640085,-151.0,0.00024998,2]
[328408242,1717356640097,-151.0,0.00024998,2]
[328408243,1717356640107,-1517.472116,0.00024998,2]
[328408244,1717356640117,-1517.472116,0.00024998,2]
[328408245,1717356640127,-151.0,0.00024998,2]
[328408246,1717356640136,-1280.809995,0.00024998,2]
[328408247,1717356640146,-1280.809995,0.00024998,2]
[328408248,1717356640156,-151.0,0.00024998,2]
[328408249,1717356640166,-151.0,0.00024998,2]
[328408250,1717356640178,-151.0,0.00024998,2]
[328408251,1717356640187,-154.9690062,0.00025,2]
[328408252,1717356640197,-345.0,0.00025,2]
[328408253,1717356640207,-153.0,0.00025014,2]
[328408254,1717356640217,-153.0,0.00025014,2]
[328408255,1717356640227,-153.0,0.00025014,2]
[328408256,1717356640237,-153.0,0.00025014,2]
[328408257,1717356640246,-153.0,0.00025014,2]
[328408258,1717356640256,-154.99328785,0.00025024,2]
[328408259,1717356640266,-893.13912396,0.00025079,2]
[328408260,1717356640276,-16339.78,0.00025141,3]
[328408261,1717356640286,-204.985722,0.00025151,2]
[328408262,1717356640296,-204.985722,0.00025151,2]
[328408263,1717356640306,-204.4658105,0.00025151,2]
[328408264,1717356640316,-402.3924714,0.00025151,2]
[328408265,1717356640326,-409.34448884,0.00025184,2]
[328408266,1717356640336,-1901.24888842,0.00025185,2]
[328408267,1717356640346,-151.0,0.00025185,2]
[328408268,1717356640357,-151.0,0.00025185,2]
[328408269,1717356640367,-156.927601,0.00025185,2]
[328408270,1717356640378,-204.220422,0.00025185,2]
[328408271,1717356640388,-156.927601,0.00025185,2]
[328408272,1717356640398,-204.220422,0.00025185,2]
[328408273,1717356640408,-151.0,0.00025185,2]
[328408274,1717356640418,-151.0,0.00025185,2]
[328408275,1717356640428,-151.0,0.00025185,2]
[328408276,1717356640438,-1057.684367,0.00025185,2]
[328408277,1717356640448,-1057.684367,0.00025185,2]
[328408278,1717356640458,-151.0,0.00025185,2]
[328408279,1717356640468,-380.028036,0.00025185,2]
[328408280,1717356640478,-380.028036,0.00025185,2]
[328408281,1717356640488,-151.0,0.00025185,2]
[328408282,1717356640497,-1280.809995,0.00025185,2]
[328408283,1717356640507,-1280.809995,0.00025185,2]
[328408284,1717356640517,-179.004533,0.00025185,2]
[328408285,1717356640527,-151.0,0.00025185,2]
[328408286,1717356640537,-151.0,0.00025185,2]
[328408289,1717356640547,-153.0,0.0002526,2]
[328408292,1717356640557,-153.0,0.0002526,2]
[328408295,1717356640567,-442.92295723,0.00025626,2]
[328408298,1717356640576,-151.0,0.00025807,2]
[328408300,1717356640586,-1517.472116,0.00025807,2]
[328408302,1717356640596,-1517.472116,0.00025807,2]
[328408304,1717356640605,-151.0,0.00025808,2]
[328408306,1717356640616,-151.0,0.00025808,2]
[328408308,1717356640626,-1057.684367,0.00025808,2]
[328408310,1717356640637,-1057.684367,0.00025808,2]
[328408312,1717356640647,-151.0,0.00025808,2]
[328408315,1717356640663,-380.028036,0.00025808,2]
[328408317,1717356640679,-380.028036,0.00025808,2]
[328408319,1717356640690,-290.635608,0.00025808,2]
[328408320,1717356640700,-290.635608,0.00025808,2]
[328408321,1717356640711,-151.0,0.00025808,2]
[328408322,1717356640721,-156.927601,0.0002589,2]
[328408323,1717356640731,-204.220422,0.0002589,2]
[328408324,1717356640742,-156.927601,0.0002589,2]
[328408326,1717356640757,-204.220422,0.0002589,2]
[328408328,1717356640767,-345.0,0.0002589,2]
[328408330,1717356640778,-272.038806,0.00025968,2]
[328408332,1717356640788,-292.065583,0.00025973,2]
[328408335,1717356640799,-292.065583,0.00025973,2]
[328408337,1717356640809,-292.065583,0.00025973,2]
[328408339,1717356640820,-153.0,0.00025973,2]
[328408340,1717356640830,-1352.47027716,0.00025976,2]
[328408341,1717356640840,-290.635608,0.00025977,2]
[328408342,1717356640850,-290.635608,0.00025977,2]
[328408343,1717356640860,-1517.472116,0.00025977,2]
[328408344,1717356640870,-1517.472116,0.00025977,2]
[328408345,1717356640879,-156.927601,0.00025978,2]
[328408346,1717356640889,-204.220422,0.00025978,2]
[328408347,1717356640900,-156.927601,0.00025978,2]
[328408348,1717356640910,-204.220422,0.00025978,2]
[328408349,1717356640919,-151.0,0.00025978,2]
[328408350,1717356640931,-151.0,0.00025978,2]
[328408351,1717356640940,-1057.684367,0.00025978,2]
[328408352,1717356640950,-1057.684367,0.00025978,2]
[328408353,1717356640960,-151.0,0.00025978,2]
[328408354,1717356640969,-380.028036,0.00025978,2]
[328408355,1717356640979,-380.028036,0.00025978,2]
[328408356,1717356640989,-1517.472116,0.00025978,2]
[328408357,1717356640998,-1517.472116,0.00025978,2]
[328408358,1717356641009,-151.0,0.00025978,2]
[328408359,1717356641023,-1280.809995,0.00025978,2]
[328408360,1717356641033,-1280.809995,0.00025978,2]
[328408361,1717356641043,-151.0,0.00025978,2]
[328408362,1717356641053,-151.0,0.00025978,2]
[328408363,1717356641063,-605.6006438,0.00025986,2]
[328408364,1717356641073,-155.33502581,0.00025986,2]
[328408365,1717356641083,-155.13929102,0.00025986,2]
[328408366,1717356641095,-2494.40275771,0.00025986,2]
[328408367,1717356641105,-555.40148551,0.00025986,2]
[328408368,1717356641114,-500.0,0.00025986,2]
[328408369,1717356641123,-468.55352757,0.00025986,2]
[328408370,1717356641134,-378.31447046,0.00025986,2]
[328408371,1717356641143,-500.0,0.00025986,2]
[328408372,1717356641152,-338.55601935,0.00025986,2]
[328408373,1717356641162,-432.2141376,0.00025986,2]
[328408374,1717356641378,-67.7858624,0.00025986,2]
[328408375,1717356641388,-500.0,0.00025986,2]
[328408376,1717356641398,-196.20833518,0.00025986,2]
[328408377,1717356641408,-500.0,0.00025986,2]
[328408378,1717356641418,-500.0,0.00025986,2]
[328408379,1717356641429,-500.0,0.00025986,2]
[328408380,1717356641440,-151.0,0.00025986,2]
[328408381,1717356641451,-1280.809995,0.00025986,2]
[328408382,1717356641460,-170.09580742,0.00025986,2]
[328408383,1717356641476,-378.8879094,0.00025986,2]
[328408463,1717356643163,-347.495871,0.00024998,2]
[328408466,1717356643173,-78.01217221,0.00025013,2]
[328408468,1717356643185,-323.63793146,0.00025013,2]
[328408470,1717356643195,-347.495871,0.00025185,2]
[328408472,1717356643204,-347.495871,0.00025978,2]
[328408474,1717356643213,-731.82627818,0.00025986,2]
[328408476,1717356643223,-151.0,0.00025986,2]
[328408478,1717356643232,-151.0,0.00025986,2]
[328408480,1717356643241,-347.495871,0.00025986,2]
[328408482,1717356643250,-4253.72315892,0.00025987,7]
[328408484,1717356643260,-1098.98243404,0.00025987,2]
[328408485,1717356643270,-7842.36332697,0.00025987,2]
[328408489,1717356643448,-596.852607,0.00025987,2]
[328408490,1717356643457,-204.220422,0.00025987,2]
[328408491,1717356643467,-156.927601,0.00025987,2]
[328408492,1717356643476,-156.927601,0.00025987,2]
[328408493,1717356643485,-19.413867,0.00025987,2]
[328408494,1717356643497,-184.806555,0.00025987,2]
[328408495,1717356643507,-151.0,0.00025987,2]
[328408496,1717356643517,-151.0,0.00025987,2]
[328408497,1717356643526,-1057.684367,0.00025987,2]
[328408498,1717356643535,-780.03108375,0.00025987,2]
[328408499,1717356643547,-277.65328325,0.00025987,2]
[328408500,1717356643557,-151.0,0.00025987,2]
[328408501,1717356643568,-380.028036,0.00025987,2]
[328408502,1717356643577,-380.028036,0.00025987,2]
[328408503,1717356643587,-290.635608,0.00025987,2]
[328408504,1717356643596,-290.635608,0.00025987,2]
[328408505,1717356643606,-290.635608,0.00025987,2]
[328408506,1717356643615,-290.635608,0.00025987,2]
[328408507,1717356643624,-1517.472116,0.00025987,2]
[328408508,1717356643633,-1517.472116,0.00025987,2]
[328408509,1717356643643,-1280.809995,0.00025987,2]
[328408510,1717356643652,-1280.809995,0.00025987,2]
[328408511,1717356643661,-151.0,0.00025987,2]
[328408512,1717356643670,-151.0,0.00025987,2]
[328408513,1717356643679,-347.495871,0.00025987,2]
[328408514,1717356643689,-8669.34768305,0.00025988,7]
[328408515,1717356643698,-4680.57970924,0.00025988,2]
[328408516,1717356643707,-1871.01679575,0.00025988,2]
[328408517,1717356643716,-309.70578646,0.00025988,2]
[328408518,1717356643725,-1462.49098812,0.00025988,2]
[328408519,1717356643734,-224.89839615,0.00025988,2]
[328408520,1717356643743,-3986.84838005,0.00025988,2]
[328408521,1717356643752,-461.74457998,0.00025988,2]
[328408522,1717356643761,-4126.48756248,0.00025988,10]
[328408523,1717356643770,-154.9690062,0.00025988,2]
[328408524,1717356643779,-877.41368496,0.00025988,2]
[328408525,1717356643788,-2091.76875712,0.00025988,2]
[328408526,1717356643797,-156.927601,0.00025988,2]
[328408527,1717356643806,-156.927601,0.00025988,2]
[328408528,1717356643815,-204.220422,0.00025988,2]
[328408529,1717356643824,-204.220422,0.00025988,2]
[328408530,1717356643833,-156.927601,0.00025988,2]
[328408531,1717356643843,-156.927601,0.00025988,2]
[328408532,1717356643852,-204.220422,0.00025988,2]
[328408533,1717356643861,-204.220422,0.00025988,2]
[328408534,1717356643870,-151.0,0.00025988,2]
[328408535,1717356643879,-151.0,0.00025988,2]
[328408536,1717356643889,-151.0,0.00025988,2]
[328408537,1717356643898,-151.0,0.00025988,2]
[328408538,1717356643908,-1057.684367,0.00025988,2]
[328408539,1717356643917,-1057.684367,0.00025988,2]
[328408540,1717356643928,-1057.684367,0.00025988,2]
[328408541,1717356643937,-1057.684367,0.00025988,2]
[328408542,1717356643947,-287.030338,0.00025988,2]
[328408543,1717356643957,-380.028036,0.00025988,2]
[328408544,1717356643967,-380.028036,0.00025988,2]
[328408545,1717356643976,-380.028036,0.00025988,2]
[328408546,1717356643986,-380.028036,0.00025988,2]
[328408547,1717356643996,-290.635608,0.00025988,2]
[328408548,1717356644006,-290.635608,0.00025988,2]
[328408549,1717356644018,-290.635608,0.00025988,2]
[328408550,1717356644028,-290.635608,0.00025988,2]
[328408551,1717356644037,-1517.472116,0.00025988,2]
[328408552,1717356644046,-1517.472116,0.00025988,2]
[328408553,1717356644056,-1517.472116,0.00025988,2]
[328408554,1717356644066,-1517.472116,0.00025988,2]
[328408555,1717356644076,-1280.809995,0.00025988,2]
[328408556,1717356644085,-1280.809995,0.00025988,2]
[328408557,1717356644097,-1280.809995,0.00025988,2]
[328408558,1717356644106,-1109.46238118,0.00025988,2]
[328408569,1717356646157,-500.0,0.00024499,2]
[328408570,1717356646167,-347.495871,0.00024998,2]
[328408571,1717356646176,-1102.70505763,0.00025183,2]
[328408572,1717356646188,-623.8675752,0.00025184,2]
[328408573,1717356646197,-55.08153422,0.00025185,2]
[328408575,1717356646583,-282.5,0.00025185,2]
[328408576,1717356646595,-9.91433678,0.00025185,2]
[328408577,1717356646605,-251.89566322,0.00025978,2]
[328408584,1717356646700,273.37336231,9.9e-05,2]
[328408585,1717356655328,156.64393718,9.9e-05,2]
[328408586,1717356701472,-4126.48756248,0.0002,10]
[328408587,1717356716015,4126.48756248,0.0002,10]
[328408589,1717356734024,4126.48756248,0.0002,10]
[328408591,1717356752022,1453.03959775,0.0002,10]
[328408592,1717356758111,273.37336231,9.9e-05,2]
[328408593,1717356766620,273.37336231,9.9e-05,2]
[328408594,1717356774880,273.37336231,9.9e-05,2]
[328408595,1717356782716,273.37336231,9.9e-05,2]
[328408596,1717356790903,273.37336231,9.9e-05,2]
[328408599,1717356798726,273.37336231,9.9e-05,2]
[328408600,1717356806808,273.37336231,9.9e-05,2]
[328408601,1717356814693,273.37336231,9.9e-05,2]
[328408602,1717356820122,223.99313882,9.9e-05,2]
[328408603,1717356824033,155.08139107,9.9e-05,2]
[328408604,1717356824074,273.37336231,9.9e-05,2]
[328408605,1717356831919,273.37336231,9.9e-05,2]
[328408606,1717356837575,525.26787255,9.999e-05,2]
[328408607,1717356838207,259.45069077,9.9e-05,2]
[328408608,1717356840617,273.37336231,9.9e-05,2]
[328408609,1717356848679,273.37336231,9.9e-05,2]
[328408610,1717356853124,372.11026212,9.999e-05,2]
[328408611,1717356857559,273.37336231,9.9e-05,2]
[328408612,1717356860590,521.28922342,9.999e-05,2]
[328408613,1717356865768,273.37336231,9.9e-05,2]
[328408614,1717356875043,273.37336231,9.9e-05,2]
[328408615,1717356875105,267.12666429,9.999e-05,7]
[328408616,1717356876282,169.83100091,0.000136,2]
[328408617,1717356876321,3637.67715595,9.9e-05,2]
[328408618,1717356878425,155.36790834,9.9e-05,2]
[328408619,1717356883993,273.37336231,9.9e-05,2]
[328408620,1717356886615,944.7008589,0.00015,2]
[328408621,1717356887467,154.95351395,9.9e-05,2]
[328408622,1717356889078,489.04932178,9.999e-05,2]
[328408623,1717356892619,273.37336231,9.9e-05,2]
[328408624,1717356894268,3637.67715595,9.9e-05,2]
[328408625,1717356900484,273.37336231,9.9e-05,2]
[328408626,1717356908914,237.01151435,9.9e-05,2]
[328408627,1717356909030,273.37336231,9.9e-05,2]
[328408628,1717356914231,3637.67715595,9.9e-05,2]
[328408629,1717356917391,273.37336231,9.9e-05,2]
[328408630,1717356924770,154.95351395,9.999e-05,2]
[328408631,1717356925498,273.37336231,9.9e-05,2]
[328408632,1717356933386,273.37336231,9.9e-05,2]
[328408633,1717356936235,2065.74633958,9.9e-05,2]
[328408634,1717356941935,273.37336231,9.9e-05,2]
[328408635,1717356950314,273.37336231,9.9e-05,2]
[328408636,1717356958423,273.37336231,9.9e-05,2]
[328408637,1717356966211,273.37336231,9.9e-05,2]
[328408638,1717356975370,273.37336231,9.9e-05,2]
[328408639,1717356978290,514.91423311,9.999e-05,2]
[328408640,1717356983114,1154.21657296,9.999e-05,2]
[328408641,1717356983193,273.37336231,9.9e-05,2]
[328408642,1717356991354,273.37336231,9.9e-05,2]
[328408645,1717356997374,154.95351395,0.00015,2]
[328408646,1717356997699,154.95351395,9.999e-05,7]
[328408647,1717356999585,273.37336231,9.9e-05,2]
[328408648,1717357008961,273.37336231,9.9e-05,2]
[328408649,1717357015128,154.95351395,0.00015,2]
[328408650,1717357017439,273.37336231,9.9e-05,2]
[328408651,1717357025723,273.37336231,9.9e-05,2]
[328408652,1717357033807,273.37336231,9.9e-05,2]
[328408653,1717357035134,166.03360622,0.00015,2]
[328408654,1717357041851,273.37336231,9.9e-05,2]
[328408655,1717357050332,273.37336231,9.9e-05,2]
[328408656,1717357058947,273.37336231,9.9e-05,2]
[328408657,1717357067348,273.37336231,9.9e-05,2]
[328408658,1717357075932,273.37336231,9.9e-05,2]
[328408659,1717357083818,273.37336231,9.9e-05,2]
[328408660,1717357091964,273.37336231,9.9e-05,2]
[328408661,1717357100349,273.37336231,9.9e-05,2]
[328408662,1717357108651,273.37336231,9.9e-05,2]
[328408663,1717357117538,273.37336231,9.9e-05,2]
[328408664,1717357125602,273.37336231,9.9e-05,2]
[328408665,1717357134710,273.37336231,9.9e-05,2]
[328408666,1717357143100,273.37336231,9.9e-05,2]
[328408667,1717357151012,273.37336231,9.9e-05,2]
[328408668,1717357160202,273.37336231,9.9e-05,2]
[328408669,1717357168584,273.37336231,9.9e-05,2]
[328408670,1717357177238,273.37336231,9.9e-05,2]
[328408671,1717357185091,273.37336231,9.9e-05,2]
[328408672,1717357188221,267.12666429,0.00019719,7]
[328408673,1717357193120,273.37336231,9.9e-05,2]
[328408675,1717357200967,273.37336231,9.9e-05,2]
[328408676,1717357209610,273.37336231,9.9e-05,2]
[328408677,1717357217468,273.37336231,9.9e-05,2]
[328408678,1717357226164,273.37336231,9.9e-05,2]
[328408679,1717357233972,273.37336231,9.9e-05,2]
[328408680,1717357242751,273.37336231,9.9e-05,2]
[328408681,1717357251185,273.37336231,9.9e-05,2]
[328408682,1717357260403,273.37336231,9.9e-05,2]
[328408683,1717357268812,273.37336231,9.9e-05,2]
[328408684,1717357276960,273.37336231,9.9e-05,2]
[328408685,1717357284715,273.37336231,9.9e-05,2]
[328408686,1717357292744,273.37336231,9.9e-05,2]
[328408687,1717357300542,273.37336231,9.9e-05,2]
[328408688,1717357308779,273.37336231,9.9e-05,2]
[328408689,1717357317198,273.37336231,9.9e-05,2]
[328408690,1717357325008,273.37336231,9.9e-05,2]
[328408691,1717357332225,154.95351395,0.00019716,7]
[328408692,1717357333587,273.37336231,9.9e-05,2]
[328408693,1717357341426,273.37336231,9.9e-05,2]
[328408694,1717357349519,273.37336231,9.9e-05,2]
[328408695,1717357357333,273.37336231,9.9e-05,2]
[328408696,1717357365408,273.37336231,9.9e-05,2]
[328408697,1717357373207,273.37336231,9.9e-05,2]
[328408698,1717357381237,273.37336231,9.9e-05,2]
[328408699,1717357389187,273.37336231,9.9e-05,2]
[328408700,1717357397720,273.37336231,9.9e-05,2]
[328408701,1717357405527,273.37336231,9.9e-05,2]
[328408702,1717357414108,273.37336231,9.9e-05,2]
[328408703,1717357422500,273.37336231,9.9e-05,2]
[328408704,1717357431242,273.37336231,9.9e-05,2]
[328408705,1717357438982,273.37336231,9.9e-05,2]
[328408706,1717357447658,273.37336231,9.9e-05,2]
[328408707,1717357455735,273.37336231,9.9e-05,2]
[328408708,1717357463820,273.37336231,9.9e-05,2]
[328408709,1717357471725,273.37336231,9.9e-05,2]
[328408710,1717357479795,273.37336231,9.9e-05,2]
[328408711,1717357488195,273.37336231,9.9e-05,2]
[328408712,1717357496260,273.37336231,9.9e-05,2]
[328408713,1717357504096,273.37336231,9.9e-05,2]
[328408714,1717357512908,273.37336231,9.9e-05,2]
[328408715,1717357520737,273.37336231,9.9e-05,2]
[328408716,1717357529993,273.37336231,9.9e-05,2]
[328408717,1717357538654,273.37336231,9.9e-05,2]
[328408718,1717357546751,273.37336231,9.9e-05,2]
[328408719,1717357555114,273.37336231,9.9e-05,2]
[328408720,1717357559816,20000.0,0.00028,120]
[328408721,1717357563146,273.37336231,9.9e-05,2]
[328408722,1717357572860,273.37336231,9.9e-05,2]
[328408723,1717357581565,273.37336231,9.9e-05,2]
[328408724,1717357589381,273.37336231,9.9e-05,2]
[328408725,1717357597401,273.37336231,9.9e-05,2]
[328408726,1717357605339,273.37336231,9.9e-05,2]
[328408727,1717357613428,273.37336231,9.9e-05,2]
[328408728,1717357621965,273.37336231,9.9e-05,2]
[328408729,1717357630572,273.37336231,9.9e-05,2]
[328408730,1717357638958,273.37336231,9.9e-05,2]
[328408731,1717357647059,273.37336231,9.9e-05,2]
[328408732,1717357655717,273.37336231,9.9e-05,2]
[328408733,1717357664365,273.37336231,9.9e-05,2]
[328408734,1717357670805,154.95351395,0.00019719,7]
[328408735,1717357672330,273.37336231,9.9e-05,2]
[328408736,1717357680385,273.37336231,9.9e-05,2]
[328408737,1717357688185,273.37336231,9.9e-05,2]
[328408738,1717357696514,273.37336231,9.9e-05,2]
[328408739,1717357704345,273.37336231,9.9e-05,2]
[328408740,1717357713170,273.37336231,9.9e-05,2]
[328408741,1717357721018,273.37336231,9.9e-05,2]
[328408742,1717357729078,273.37336231,9.9e-05,2]
[328408743,1717357736887,273.37336231,9.9e-05,2]
[328408744,1717357745532,273.37336231,9.9e-05,2]
[328408745,1717357753802,273.37336231,9.9e-05,2]
[328408746,1717357761856,273.37336231,9.9e-05,2]
[328408747,1717357769731,273.37336231,9.9e-05,2]
[328408749,1717357778479,273.37336231,9.9e-05,2]
[328408750,1717357786650,273.37336231,9.9e-05,2]
[328408751,1717357794825,273.37336231,9.9e-05,2]
[328408752,1717357802641,273.37336231,9.9e-05,2]
[328408753,1717357810712,273.37336231,9.9e-05,2]
[328408754,1717357818651,273.37336231,9.9e-05,2]
[328408755,1717357827271,273.37336231,9.9e-05,2]